Cogmind - Beta 15 @@@ ROGUE MODE // 2025.10.08 @ 22:43:29 Player: weedlord420 Result: Destroyed self via exploding Fusion Modulator Performance ------------- Evolutions (0) 0 Regions Visited (1) 200 Robots Destroyed (20) 100 Value Destroyed (430) 430 Prototype IDs (0) 0 Alien Tech Used (0) 0 Bonus (0) 0 TOTAL SCORE: 730 Bonus ------- None Cogmind --------- Core Integrity 0/250 Matter 300/300 Energy 45/125 System Corruption 0% Temperature Cool (12) Movement Rolling (105) Ox1 Location -10/Materials Parts ------- > --- POWER (1) -------- Light Ion Engine > --- PROPULSION (2) --- Wheel Compact Wheel > --- UTILITY (2) ------ Large Storage Unit Medium Armor Plating > --- WEAPON (2) ------- Light EM Pulse Cannon Light EM Pulse Cannon > --- INVENTORY (15) --- Improved Treads Improved Treads Improved Heat Sink Small Storage Unit Medium Storage Unit Structural Scanner Medium Armor Plating Medium Armor Plating Medium Armor Plating Scrap Shield Tractor Beam Small Laser Light Assault Rifle Plasma Cutter Peak State ------------ > --- POWER ------------ Ion Engine > --- PROPULSION ------- Improved Treads Improved Treads > --- UTILITY ---------- Small Storage Unit Structural Scanner > --- WEAPON ----------- Particle Gun Particle Gun > --- INVENTORY -------- Light Ion Engine Wheel Wheel Compact Wheel Medium Armor Plating Tractor Beam Medium Laser Plasma Cutter [Rating: 12] Favorites ----------- Power Ion Engine Engine Ion Engine Propulsion Wheel Treads Improved Treads Wheel Wheel Utility Small Storage Unit Device Structural Scanner Storage Small Storage Unit Protection Medium Armor Plating Weapon Particle Gun Energy Gun Particle Gun Energy Cannon Light EM Pulse Cannon Ballistic Gun Light Assault Rifle Slashing Weapon Mining Claw Build | -11 -10 ------- Run | Yrd Mat Slots Evolved . | . . Power . | . . Propulsion . | . . Utility . | . . Weapon . | . . Parts Attached 27 | 7 20 Power 2 | 2 . Engine 2 | 2 . Core . | . . Reactor . | . . Propulsion 7 | 2 5 Treads 4 | . 4 Leg . | . . Wheel 3 | 2 1 Hover . | . . Flight . | . . Utility 9 | 1 8 Device 3 | . 3 Storage 5 | 1 4 Processor . | . . Hackware . | . . Protection 1 | . 1 Artifact . | . . Weapon 9 | 2 7 Energy Gun 5 | 1 4 Energy Cannon 2 | . 2 Ballistic Gun 1 | 1 . Ballistic Cannon . | . . Launcher . | . . Special Weapon . | . . Impact Weapon . | . . Slashing Weapon 1 | . 1 Piercing Weapon . | . . Special Melee Weapon . | . . Unidentified Prototypes . | . . Parts Lost 2 | . 2 Power 1 | . 1 Propulsion 1 | . 1 Utility . | . . Weapon . | . . Highest Loss Streak 1 | . 1 To Critical Strikes . | . . Average Backups 8 | 3 8 Power . | . . Propulsion 2 | 1 2 Utility 2 | . 2 Weapon 1 | . 1 Tool/Special . | . . Unused Backups 11 | . 11 Power . | . . Propulsion 3 | . 3 Utility 5 | . 5 Weapon 2 | . 2 Tool/Special 1 | . 1 Average Slot Usage (%) 96 | . 96 Engine 13 | . 13 Treads 4 | . 4 Wheel 23 | . 23 Device 6 | . 6 Storage 14 | . 14 Protection 5 | . 5 Energy Gun 24 | . 24 Energy Cannon 2 | . 2 Ballistic Gun 1 | . 1 Peak Build Rating 12 | 6 12 Average Rating 9 | 3 9 On Entrance 3 | . 6 Naked Turns . | . . Heaviest Build 38 | 13 38 Greatest Support 46 | 26 46 Greatest Overweight (x) 1 | . 1 Average Overweight (x) . | . . Largest Inventory Capacity 15 | 8 15 Average Capacity 9 | 7 9 Most Carried 15 | 5 15 Average Carried 8 | 3 8 Final Capacity 15 | 8 15 Final Carried 15 | 4 15 Class Distribution -------------------- 100% | Mutant Dominant Class ---------------- Mutant | -10/Materials Resources | -11 -10 ----------- Run | Yrd Mat Matter Collected 706 | 219 487 Remotely . | . . Salvage Created 557 | . 557 Parts 43 | . 43 Haulers Intercepted 1 | . 1 Recyclers Shooed 1 | . 1 Parts Field Recycled . | . . Retrieved Matter . | . . Parts Self-Destructed . | . . Prevented . | . . Kills | -11 -10 ------- Run | Yrd Mat Combat Hostiles Destroyed 14 | . 14 Guns 14 | . 14 Classes Destroyed 5 | . 5 Builder 3 | . 3 Hauler 1 | . 1 Watcher 2 | . 2 Swarmer 6 | . 6 Grunt 8 | . 8 Best Kill Streak 4 | . 4 Combat Bots Only 4 | . 4 Max Kills in Single Turn 2 | . 2 Gunslinging 1 | . 1 Exploded . | . . Melee . | . . Uniques/NPCs Destroyed . | . . Combat | -11 -10 -------- Run | Yrd Mat Hostile Shots Fired 67 | . 67 Missed 11 | . 11 Hits 56 | . 56 Projectile 56 | . 56 Damage Taken 706 | . 706 Core 274 | . 274 Absorbed by Shields . | . . Core Remaining (%) 100 | 100 . Volleys Fired 44 | . 44 Largest 2 | . 2 Hottest 130 | . 130 Shots Fired 86 | . 86 Gun 84 | . 84 Cannon 2 | . 2 Launcher . | . . Special . | . . Kinetic 1 | . 1 Thermal 80 | . 80 Explosive . | . . Electromagnetic 5 | . 5 Robot Hit Streak 6 | . 6 Robot Miss Streak 7 | . 7 Penetration Max . | . . Secondary Targets 4 | . 4 Max Gunslinging Chain 1 | . 1 Shots Hit Robots 48 | . 48 Core Hits 28 | . 28 Critical Kills . | . . Critical Parts Destroyed . | . . Critical Strikes 3 | . 3 Burn 3 | . 3 Melee Attacks 3 | . 3 Impact . | . . Slashing 3 | . 3 Piercing . | . . Sneak Attacks . | . . Combat Hostiles . | . . Follow-up Attacks . | . . Damage Inflicted 676 | . 676 Guns 676 | . 676 Cannons . | . . Explosions . | . . Melee . | . . Ramming . | . . Kinetic 9 | . 9 Thermal 646 | . 646 Explosive . | . . Electromagnetic 21 | . 21 Impact . | . . Slashing . | . . Piercing . | . . Highest Corruption . | . . Average Corruption . | . . Corruption Purged . | . . Corruption Blocked . | . . Overload Shots . | . . Overflow Damage . | . . Projectiles . | . . Explosions . | . . Melee . | . . Knockbacks . | . . Impact . | . . Kinetic . | . . Secondary . | . . Self-Inflicted Damage 88 | . 88 Shots 1 | . 1 Rammed . | . . Targets Rammed . | . . Kicked . | . . Crushed . | . . Highest Temperature 715 | . 715 Average Temperature 169 | . 169 Received Heat Transfer 168 | . 168 Effects 17 | . 17 Shutdowns 1 | . 1 Energy Bleed 4 | . 4 Interference 1 | . 1 Matter Decay 1 | . 1 Short Circuit 3 | . 3 Damage (minor) 2 | . 2 Damage (major) 4 | . 4 Damage (core) 1 | . 1 Siege Activations . | . . Martial Activations . | . . Shielding Activations . | . . Robots Disrupted . | . . Combat Hostiles . | . . Robots Corrupted . | . . Combat Hostiles . | . . Parts Fried . | . . Impact Corruptions . | . . Robots Melted . | . . Combat Hostiles . | . . Parts Melted 1 | . 1 Heat Transferred 1840 | . 1840 Parts Sabotaged . | . . Parts Stolen . | . . Parts Stripped . | . . Power Chain Reactions . | . . Alert | -11 -10 ------- Run | Yrd Mat Maximum Alert Level . | . . Low Security (%) 100 | 100 100 Level 1 . | . . Level 2 . | . . Level 3 . | . . Level 4 . | . . Level 5 . | . . High Security . | . . Max Security . | . . Peak Influence 160 | . 160 Initial . | . . Average 56 | . 60 Influence Increases 412 | . 412 Destroy 0b10 Robot/C 280 | . 280 Destroy 0b10 Robot/NC 30 | . 30 Destroy Leader 66 | . 66 Successful Hack 6 | . 6 Disable Machine 15 | . 15 Destroy Structure 15 | . 15 Influence Decreases 332 | . 332 Time Decay 312 | . 312 Lost Part 20 | . 20 Squads Dispatched 1 | . 1 Investigation 1 | . 1 Extermination . | . . Reinforcement . | . . Assault . | . . Garrison . | . . Intercept . | . . Searches Triggered . | . . Construction Impeded . | . . Haulers Reinforced . | . . Active Scanning Responses . | . . Cargo Convoy Interrupts . | . . Stealth | -11 -10 --------- Run | Yrd Mat Distress Signals 1 | . 1 Communications Jammed . | . . Distress Signals . | . . Times Spotted 19 | . 19 Peak Tracking Total 4 | . 4 Tactical Retreats . | . . Traps | -11 -10 ------- Run | Yrd Mat Traps Triggered 1 | . 1 Indirectly . | . . Trap Hack Attempts . | . . Triggered . | . . Disarmed . | . . Reprogrammed . | . . Reused . | . . Traps Extracted . | . . Installed . | . . Triggered . | . . Machines | -11 -10 ---------- Run | Yrd Mat Machines Disabled 1 | . 1 Max in Single Turn 1 | . 1 Machines Repaired . | . . Machines Dismantled . | . . Machines Sabotaged . | . . Overloaded Fab Kills . | . . Hacking | -11 -10 --------- Run | Yrd Mat Machines Accessed 5 | . 5 Terminals 5 | . 5 Fabricators . | . . Repair Stations . | . . Recycling Units . | . . Scanalyzers . | . . Garrison Access . | . . Total Hacks 13 | . 13 Successful 1 | . 1 Failed 12 | . 12 Catastrophic 1 | . 1 Database Lockouts . | . . Manual 13 | . 13 Terminals 13 | . 13 Fabricators . | . . Repair Stations . | . . Recycling Units . | . . Scanalyzers . | . . Garrison Access . | . . Terminal Hacks . | . . Fabricator Hacks . | . . Repair Station Hacks . | . . Recycling Unit Hacks . | . . Scanalyzer . | . . Garrison Access Hacks . | . . Unauthorized Hacks 1 | . 1 Terminals 1 | . 1 Operators 1 | . 1 Fabricators . | . . Repair Stations . | . . Recycling Units . | . . Scanalyzers . | . . Garrison Access . | . . Data Cores Recovered . | . . Used . | . . Hacking Detections 5 | . 5 Full Trace Events . | . . Feedback Events . | . . Feedback Blocked . | . . Robot Schematics Acquired . | . . Robots Built . | . . Authchips . | . . Time . | . . Total Robot Build Rating . | . . Part Schematics Acquired . | . . Parts Built . | . . Authchips . | . . Time . | . . Total Part Build Rating . | . . Parts Repaired . | . . Time . | . . Parts Recycled . | . . Recycled Matter . | . . Retrieved Matter . | . . Retrieved Components . | . . Parts Scanalyzed . | . . Part Schematics Acquired . | . . Parts Damaged . | . . Bothacking | -11 -10 ------------ Run | Yrd Mat Used RIF Installer . | . . Robots Hacked . | . . Non-combat . | . . Combat . | . . Robot Hacks Applied . | . . Relay Couplers Released . | . . Fabnet Peak Effective % . | . . Robots Rewired . | . . Allies Hacked . | . . Hacks Repelled . | . . Allies | -11 -10 -------- Run | Yrd Mat Total Allies . | . . Largest Group . | . . Highest-Rated Group . | . . Highest-Rated Ally . | . . Total Orders . | . . Ally Attacks . | . . Total Damage . | . . Kills . | . . Allies Corrupted . | . . Allies Melted . | . . Intel | -11 -10 ------- Run | Yrd Mat Active Infowar (turns) 283 | . 283 Terrain 71 | . 71 Structural 212 | . 212 Robot Analysis Total . | . . Derelict Logs Recovered . | . . Drone Launches . | . . Drone Recoveries . | . . Exploration | -11 -10 ------------- Run | Yrd Mat Turns Passed 894 | 58 836 Spaces Moved 622 | 49 573 Core 18 | 18 . Treads 16 | . 16 Legs . | . . Wheels 588 | 31 557 Hover . | . . Flight . | . . Fastest Speed 50 | 50 80 Average Speed 95 | 75 97 Slowest Speed 160 | 90 160 Overloaded Moves . | . . Propulsion Burnouts . | . . Robots Hopped . | . . Potential Cave-ins . | . . Cave-ins Triggered . | . . Exploration Rate (%) 38 | 5 72 Regions Visited 1 Branch Regions . Pre-discovered Areas . | . . Known Exits Taken . | . . Unknown Exits Taken 1 | 1 . Scrap Searched . | . . Spaces Dug 1 | . 1 Terrain Destroyed 20 | . 20 Melee 1 | . 1 Projectile . | . . AOE 19 | . 19 Terrain Rammed . | . . Walls Destroyed . | . . Machines Disabled . | . . Actions | -11 -10 --------- Run | Yrd Mat Total 824 | 68 756 Wait 63 | 4 59 Move 621 | 48 573 Hop . | . . Pick Up 33 | 9 24 Fast Attach 6 | 1 5 Attach 7 | 5 2 Detach . | . . Swap 31 | 1 30 Drop 16 | . 16 Fire 44 | . 44 Melee 3 | . 3 Ram . | . . Kick . | . . Crush . | . . Escape Stasis . | . . Rewire . | . . Trap . | . . Miscellaneous . | . . Route ------- -11/Scrapyard -10/Materials (discovered 5 exits: [*Mat x3] / [*Min] / [*Sub]) History --------- Turn | Location | Event 14 | -11/Scrapyard | Discovered new exit (range 16) 59 | -11/Scrapyard | Entered Materials 163 | -10/Materials | Discovered new exit (range 5) 235 | -10/Materials | Discovered new exit (range 11) 265 | -10/Materials | Discovered new exit (range 15) 301 | -10/Materials | Build established: Mutant 373 | -10/Materials | Discovered new exit (range 10) 531 | -10/Materials | Core integrity fell below 50% 559 | -10/Materials | Derelicts attacked the area 564 | -10/Materials | Discovered new exit (range 12) 895 | -10/Materials | Destroyed self via exploding Fusion Modulator Last Messages --------------- 00776_ K-01 Serf collects debris. 00782_ Acquired 67 matter. 00784_ K-01 Serf collects debris. 00796_ Acquired Med. Armor Plating. 00804_ Acquired Imp. Treads. 00806_ Dropped Broken Imp. Treads. 00806_ K-01 Serf collects debris. 00806_ Acquired Imp. Treads. 00807_ Dropped Sml. Laser. 00809_ Acquired Lgt. EM Pulse Cannon. 00811_ Dropped Med. Laser. 00813_ Acquired Lgt. EM Pulse Cannon. 00834_ Acquired 20 matter. 00840_ Dropped Wheel. 00846_ K-01 Serf collects debris. 00848_ Acquired Scrap Shield. 00849_ K-01 Serf collects debris. 00852_ U-05 Engineer builds a Wall. 00852_ K-01 Serf collects debris. 00895_ Fusion Modulator explodes. Map ----- +----------------------------------------------------+ | ??# ????????????# ###########= =* !=#? | | ??# #??????????## ==%*!= *=%/ #? | | ??# #??????????## = * =*|%! %==!! #? | | ??# #???######### *% %=*=%*= *%!! #? | | ??# #???######### #####[ ==%!! #? | | ??# #???## &% ##??#= %!! #? | | ?## #???## ### " *!%% #? | | ?## #???## "" ##### % % #? | | ?## #???## """ ##?#" = #? | | ?## #???## """ ##?## *#? | | ?## #???## ##??# !%*= %#? | | ?## #???## ##??# =%*=%= "# | | ?## ###### ##??# ###+###%* ## | | ?## !###### ! //! ############ #= #? | | ?## === =%= //! ######??##"" # #? | | ?## ####### ###! /!! ##??##"T / # #? | | ?## #######+### ##??##"" !# ? | | ?## # # ##??#### # < | | ?## # # [=##??#### # | | ###% [# """ """ # [ ##????## ####+## | | # """ """ # ]]##????## ##????? | | # """ """ # !% ############ ##????? | | # + =##### #############+#####????? | | ####### # ##### ###???## ## #####????? | | ########+######## ##### ###???## T ## ##???????? | | ?## # ####;@;;#???## ## ##???????? | | ?## # # ; #??##// ## ##???????? | | ?## """ """ +^ # ; ??## / ## ##???????? | | ?## """ """ "T" # # ; #####/[ ## ##???????? | | ?## """ """ """ # + ;;##### ## ########## | | ?## # # ; ##+### ########## | | ?#########+###### # ; + % [ ## | | ?######### ###### ####;;## %=# ## | | ????????## ######## = + ## | | ###?????## ##????## ##### # ## | | #?????## ##????############ # ## | | #?????######### ##????############ # ## | | [#?????######### ##??????## # ######### | | #????????????## < ##??????## + #### | | #????????????## ##??????## ! "T" # ##?? | | +????????????#######??????########## #######?? | | #????????????#######??????######### ######?? | | #???????????????????????????????## ##????? | | +##???????????????????????????????## ##????? | | ??????????????????????????????????## < ##????? | | ??????????????????????????????????## ##????? | | ??????????????????????????????????##"" ""##????? | | ??????????????????????????????????###"!!!"###????? | | ??????????????????????????????????####"""####????? | | ???????????????????????????????????#########?????? | +----------------------------------------------------+ Best States ------------- Heat Dissipation 39 Energy Generation 10 Energy Capacity 250 Matter Stores 300 Matter Capacity 300 Sight Range 16 Terrain Scan Range 14 Terrain Scan Density 10 Armor Coverage 225 Evasion (%) 50 Recoil Reduction 2 Item Schematics ----------------- None Robot Schematics ------------------ None Fabricated ------------ Nothing Repaired ---------- Nothing Alien Tech Used ----------------- None Achievements -------------- None Challenges ------------ None Game ------ Seed ReactionQuantumComputer Manual? 0 Play Time 00:08:27 Cumulative 102.0 hours Start 2025.10.08 @ 22:35:24 End 2025.10.08 @ 22:43:29 Sessions 1 Manual Loads 0 Difficulty Rogue Special Mode None Game No. 165 Rogue 164 Adventurer 1 Explorer 0 Win Type - Total 1 Types 0/0/0/1/0/0/0/0/0/0 Lore% 57 Gallery% 52 Achievement% 49 Wizard Run 0 Options --------- Layout 1 ASCII 0 Keyboard 0 Movement Mouse Keybinds 0 Fullscreen 1 Font 24/Smallcaps Map View 50x35 Zoom Use 0% Tactical HUD 1 Map Filters NONE Filters NONE Steam 1 RUN: 10c4c3b0-c779-46b1-9e42-8a5cd3efb8b1